bitfinex/quotes_BTCUSD_20250602
["timestamp","ask_amount","ask_price","bid_price","bid_amount"]
[1748835233795,0.71060608,104880.0,104870.0,0.30438654]
[1748835234002,0.71060608,104880.0,104870.0,0.31392064]
[1748835234204,1.02127437,104880.0,104870.0,0.20853073]
[1748835234428,1.01173967,104880.0,104870.0,0.01781842]
[1748835235288,1.01233967,104880.0,104870.0,0.20853167]
[1748835235510,1.01233967,104880.0,104870.0,0.20853161]
[1748835235725,1.01233967,104880.0,104870.0,0.19071231]
[1748835235929,1.01233967,104880.0,104870.0,0.20853161]
[1748835236141,1.01233967,104880.0,104870.0,0.20853016]
[1748835236758,1.01233967,104880.0,104870.0,0.20852998]
[1748835237000,0.3554,104870.0,104860.0,0.20978776]
[1748835237206,0.40894053,104870.0,104860.0,0.33299739]
[1748835237416,0.39940483,104870.0,104860.0,0.32471391]
[1748835237892,0.39940483,104870.0,104860.0,0.34253485]
[1748835237893,0.38986967,104870.0,104860.0,0.34253485]
[1748835238109,0.36493488,104870.0,104860.0,0.32471391]
[1748835238528,0.07079048,104880.0,104870.0,0.21931805]
[1748835238770,0.81200445,104880.0,104870.0,0.31517235]
[1748835238979,0.82053897,104880.0,104870.0,0.33299483]
[1748835239225,0.82053897,104880.0,104870.0,0.31517235]
[1748835239700,0.82053897,104880.0,104870.0,0.33299713]
[1748835239919,0.71283382,104880.0,104870.0,0.32346225]
[1748835240111,0.71483382,104880.0,104870.0,0.33299749]
[1748835240342,0.72937467,104880.0,104870.0,0.32346242]
[1748835241009,0.72937467,104880.0,104870.0,0.33300058]
[1748835241569,0.71984042,104880.0,104870.0,0.30563756]
[1748835241774,0.71984042,104880.0,104870.0,0.32346935]
[1748835241998,0.71984042,104880.0,104870.0,0.31393392]
[1748835242213,0.71984042,104880.0,104870.0,0.29610213]
[1748835242402,0.71984042,104880.0,104870.0,0.31393392]
[1748835242604,0.71030608,104880.0,104870.0,0.29610213]
[1748835242815,0.71030608,104880.0,104870.0,0.31393977]
[1748835243082,0.71030608,104880.0,104870.0,0.3234752]
[1748835243265,0.71030608,104880.0,104870.0,0.31393977]
[1748835243458,0.71030608,104880.0,104870.0,0.31393981]
[1748835243840,0.71030608,104880.0,104870.0,0.29610213]
[1748835244089,0.51961196,104880.0,104870.0,0.32347491]
[1748835244292,0.51961196,104880.0,104870.0,0.33301011]
[1748835244495,0.71030608,104880.0,104870.0,0.32347486]
[1748835245151,0.71030608,104880.0,104870.0,0.30563756]
[1748835245289,0.70077156,104880.0,104870.0,0.30563756]
[1748835245496,0.70077156,104880.0,104870.0,0.3234779]
[1748835245701,0.70077156,104880.0,104870.0,0.30563756]
[1748835245909,0.70077156,104880.0,104870.0,0.3234779]
[1748835246322,0.70077156,104880.0,104870.0,0.32347992]
[1748835246531,0.70077156,104880.0,104870.0,0.30563756]
[1748835246728,0.70077156,104880.0,104870.0,0.31394449]
[1748835247134,0.70077156,104880.0,104870.0,0.32348028]
[1748835247471,0.70077156,104880.0,104870.0,0.31394485]
[1748835247865,0.70077156,104880.0,104870.0,0.33301562]
[1748835248065,0.70077156,104880.0,104870.0,0.33301875]
[1748835248271,0.70077156,104880.0,104870.0,0.32348341]
[1748835248670,0.70077156,104880.0,104870.0,0.31394798]
[1748835249000,0.70077156,104880.0,104870.0,0.31394841]
[1748835249725,0.70077156,104880.0,104870.0,0.30441289]
[1748835249940,0.70077156,104880.0,104870.0,0.29610213]
[1748835250145,0.70077156,104880.0,104870.0,0.31395067]
[1748835250385,0.70077156,104880.0,104870.0,0.32348654]
[1748835250706,0.70077156,104880.0,104870.0,0.32348999]
[1748835250940,0.51961187,104880.0,104870.0,0.32348999]
[1748835251555,0.52914585,104880.0,104870.0,0.33302991]
[1748835251732,0.52914585,104880.0,104870.0,0.30563756]
[1748835251963,0.52914585,104880.0,104870.0,0.32349457]
[1748835252135,0.52914585,104880.0,104870.0,0.32349496]
[1748835252622,0.52914585,104880.0,104870.0,0.31395953]
[1748835252836,0.52914585,104880.0,104870.0,0.30563756]
[1748835253021,0.52914585,104880.0,104870.0,0.32349876]
[1748835253371,0.52914585,104880.0,104870.0,0.30563756]
[1748835253583,0.52914585,104880.0,104870.0,0.32350539]
[1748835254219,0.52914585,104880.0,104870.0,0.32350557]
[1748835254572,0.52328055,104880.0,104870.0,0.33304091]
[1748835254815,0.52328055,104880.0,104870.0,0.32350557]
[1748835254990,0.52328055,104880.0,104870.0,0.33304109]
[1748835255191,0.52328055,104880.0,104870.0,0.30563756]
[1748835255679,0.52328055,104880.0,104870.0,0.29610213]
[1748835255888,0.71964051,104880.0,104870.0,0.30563774]
[1748835256088,0.71964051,104880.0,104870.0,0.32350586]
[1748835256574,0.71964051,104880.0,104870.0,0.34137416]
[1748835256658,0.71964051,104880.0,104870.0,0.33304138]
[1748835257041,0.71964051,104880.0,104870.0,0.35091012]
[1748835257265,0.52894639,104880.0,104870.0,0.34257672]
[1748835257462,0.5289463,104880.0,104870.0,0.35211197]
[1748835257897,0.5289463,104880.0,104870.0,0.34257672]
[1748835258232,0.50421133,104880.0,104870.0,0.34257636]
[1748835258471,0.51374521,104880.0,104870.0,0.35211152]
[1748835258651,0.51374521,104880.0,104870.0,0.34257636]
[1748835258883,0.39052399,104880.0,104870.0,0.35211097]
[1748835259102,0.39052399,104880.0,104870.0,0.36998034]
[1748835259339,0.39052399,104880.0,104870.0,0.35211097]
[1748835259581,0.39052399,104880.0,104870.0,0.36998032]
[1748835259797,0.3905239,104880.0,104870.0,0.36998175]
[1748835260001,0.37145577,104880.0,104870.0,0.38608143]
[1748835260245,0.38098974,104880.0,104870.0,0.40108143]
[1748835260422,0.37145577,104880.0,104870.0,0.38321097]
[1748835260627,0.37145577,104880.0,104870.0,0.40108331]
[1748835260858,0.37145577,104880.0,104870.0,0.40413394]
[1748835261063,0.36192189,104880.0,104870.0,0.40413394]
[1748835261269,0.36192189,104880.0,104870.0,0.3862616]
[1748835261459,0.36192189,104880.0,104870.0,0.40412955]
[1748835261649,0.02192189,104880.0,104870.0,0.40412955]
[1748835261855,0.03145586,104880.0,104870.0,0.40412909]
[1748835262258,0.02192189,104880.0,104870.0,0.40412909]
[1748835262469,0.02192189,104880.0,104870.0,0.40412431]
[1748835262833,0.02192189,104880.0,104870.0,0.40107368]
[1748835263037,0.02192189,104880.0,104870.0,0.40412369]
[1748835263659,0.02192189,104880.0,104870.0,0.4041235]
[1748835264068,0.02192189,104880.0,104870.0,0.40411933]
[1748835264273,0.02192189,104880.0,104870.0,0.4041193]
[1748835264728,0.02192189,104880.0,104870.0,0.72432206]
[1748835265138,0.02192189,104880.0,104870.0,0.72431909]
[1748835265368,0.02192189,104880.0,104870.0,0.72431914]
[1748835265575,0.02192189,104880.0,104870.0,0.7064643]
[1748835265786,0.02192189,104880.0,104870.0,0.72431912]
[1748835266417,0.02192189,104880.0,104870.0,0.724317]
[1748835266629,0.02192189,104880.0,104870.0,0.72431699]
[1748835266833,0.02192189,104880.0,104870.0,0.724317]
[1748835267282,0.02192189,104880.0,104870.0,0.72431698]
[1748835267495,0.02192189,104880.0,104870.0,0.40411417]
[1748835268109,0.02192189,104880.0,104870.0,0.40411191]
[1748835268316,0.02192189,104880.0,104870.0,0.38626147]
[1748835268539,0.02192189,104880.0,104870.0,0.4041119]
[1748835268998,0.02192189,104880.0,104870.0,0.40411118]
[1748835269212,0.02192189,104880.0,104870.0,0.40411119]
[1748835270043,0.02192189,104880.0,104870.0,0.38626146]
[1748835270489,0.02192189,104880.0,104870.0,0.40411003]
[1748835271197,0.02192189,104880.0,104870.0,0.40411001]
[1748835271634,0.02192189,104880.0,104870.0,0.38626137]
[1748835272251,0.02192189,104880.0,104870.0,0.40410992]
[1748835272688,0.02192189,104880.0,104870.0,0.38626137]
[1748835272911,0.02192189,104880.0,104870.0,0.40410786]
[1748835273617,0.02192189,104880.0,104870.0,0.72431067]
[1748835273839,0.02192189,104880.0,104870.0,0.40410786]
[1748835274050,0.02192189,104880.0,104870.0,0.40410644]
[1748835274670,0.02192189,104880.0,104870.0,0.38626137]
[1748835274869,0.02192189,104880.0,104870.0,0.40410644]
[1748835275353,0.02192189,104880.0,104870.0,0.38626137]
[1748835275573,0.02192189,104880.0,104870.0,0.4041055]
[1748835275780,0.02192189,104880.0,104870.0,0.4041043]
[1748835275985,0.02192189,104880.0,104870.0,0.40410459]
[1748835276405,0.02192189,104880.0,104870.0,0.38626137]
[1748835276626,0.02192189,104880.0,104870.0,0.40410459]
[1748835277039,0.02192189,104880.0,104870.0,0.40410492]
[1748835277657,0.02192189,104880.0,104870.0,0.4041042]
[1748835278064,0.02192189,104880.0,104870.0,0.40410473]
[1748835278270,0.02192189,104880.0,104870.0,0.38626137]
[1748835278479,0.02192189,104880.0,104870.0,0.40410473]
[1748835279301,0.02192189,104880.0,104870.0,0.72399275]
[1748835279507,0.02192189,104880.0,104870.0,0.72399312]
[1748835280097,0.02192189,104880.0,104870.0,0.72399407]
[1748835280548,0.02192189,104880.0,104870.0,0.72399402]
[1748835280841,0.02192189,104880.0,104870.0,0.70614934]
[1748835281049,0.02192189,104880.0,104870.0,0.72399349]
[1748835281688,0.02192189,104880.0,104870.0,0.72399345]
[1748835282123,0.02192189,104880.0,104870.0,0.72399419]
[1748835282324,0.02092189,104880.0,104870.0,0.72399419]
[1748835282738,0.02092189,104880.0,104870.0,0.72499419]
[1748835283215,0.02092189,104880.0,104870.0,0.72499413]
[1748835283382,0.02092189,104880.0,104870.0,0.70714934]
[1748835283593,0.01992189,104880.0,104870.0,0.72499413]
[1748835284028,0.01992189,104880.0,104870.0,0.7259964]
[1748835284829,0.01992189,104880.0,104870.0,0.70509899]
[1748835285035,0.01992189,104880.0,104870.0,0.72599571]
[1748835285432,0.01992189,104880.0,104870.0,0.72599883]
[1748835285825,0.01992189,104880.0,104870.0,0.40611081]
[1748835286021,0.01992189,104880.0,104870.0,0.72599883]
[1748835286429,0.01992189,104880.0,104870.0,0.70814927]
[1748835286629,0.01992189,104880.0,104870.0,0.72599834]
[1748835286825,0.01992189,104880.0,104870.0,0.72599801]
[1748835288033,0.01992189,104880.0,104870.0,0.72599792]
[1748835289267,0.01992189,104880.0,104870.0,0.72294764]
[1748835289456,0.01992189,104880.0,104870.0,0.72599792]
[1748835289867,0.01992189,104880.0,104870.0,0.67329383]
[1748835290102,0.01992189,104880.0,104870.0,0.99318185]
[1748835290400,0.01992189,104880.0,104870.0,0.99318234]
[1748835290607,0.01992189,104880.0,104870.0,0.97532927]
[1748835290826,0.01992189,104880.0,104870.0,0.99318234]
[1748835291150,0.01992189,104880.0,104870.0,0.99318435]
[1748835292087,0.01992189,104880.0,104870.0,0.67329756]
[1748835292339,0.01992189,104880.0,104870.0,0.97532927]
[1748835292512,0.01992189,104880.0,104870.0,0.99318554]
[1748835293624,0.01992189,104880.0,104870.0,0.99013526]
[1748835293813,0.01992189,104880.0,104870.0,0.99318591]
[1748835294053,0.01992189,104880.0,104870.0,0.99318645]
[1748835294278,0.01992189,104880.0,104870.0,0.99318676]
[1748835295273,0.01992189,104880.0,104870.0,0.99318754]
[1748835295483,0.01992189,104880.0,104870.0,0.67329952]
[1748835295715,0.01992189,104880.0,104870.0,0.99318754]
[1748835296132,0.01992189,104880.0,104870.0,0.69490754]
[1748835296329,0.01992189,104880.0,104870.0,1.08634754]
[1748835296773,0.01992189,104880.0,104870.0,1.06848934]
[1748835297000,0.01992189,104880.0,104870.0,1.08634884]
[1748835297396,0.01992189,104880.0,104870.0,1.0863498]
[1748835297597,0.01992189,104880.0,104870.0,1.06848934]
[1748835297983,0.01992189,104880.0,104870.0,1.08635109]
[1748835298530,0.05549011,104880.0,104870.0,0.37502307]
[1748835298738,0.06095586,104880.0,104870.0,0.67326307]
[1748835299152,0.07049002,104880.0,104870.0,0.99315109]
[1748835299369,0.08002436,104880.0,104870.0,0.99315332]
[1748835299573,0.08002427,104880.0,104870.0,0.99315332]
[1748835299762,0.08955879,104880.0,104870.0,0.69491332]
[1748835299967,0.08955879,104880.0,104870.0,0.6732653]
[1748835300390,0.64261451,104880.0,104870.0,0.13663684]
[1748835300620,0.5810728,104880.0,104870.0,0.11877286]
[1748835300835,0.59561365,104880.0,104870.0,0.43487942]
[1748835301029,0.59561365,104880.0,104870.0,0.44441503]
[1748835301249,0.59561365,104880.0,104870.0,0.14617531]
[1748835301383,0.59561365,104880.0,104870.0,0.44441531]
[1748835301810,0.5860794,104880.0,104870.0,0.1366397]
[1748835302017,0.5860794,104880.0,104870.0,0.44441531]
[1748835302397,0.5860794,104880.0,104870.0,0.63512102]
[1748835302591,0.5860794,104880.0,104870.0,0.64465202]
[1748835302793,0.5860794,104880.0,104870.0,0.13662858]
[1748835302992,0.5860794,104880.0,104870.0,0.43486858]
[1748835303898,0.5860794,104880.0,104870.0,0.4348684]
[1748835304344,0.5860794,104880.0,104870.0,0.62558071]
[1748835304549,0.5860794,104880.0,104870.0,0.61726103]
[1748835304754,0.5860794,104880.0,104870.0,0.63511632]
[1748835305094,0.5860794,104880.0,104870.0,1.61726103]
[1748835305295,0.5860794,104880.0,104870.0,1.63511599]
[1748835305507,0.5860794,104880.0,104870.0,1.64465151]
[1748835305729,0.5860794,104880.0,104870.0,1.34641151]
[1748835305950,0.5860794,104880.0,104870.0,1.62679671]
[1748835306170,0.5860794,104880.0,104870.0,1.64464657]
[1748835306614,0.26619138,104880.0,104870.0,1.64464656]
[1748835306905,0.25665686,104880.0,104870.0,1.43486312]
[1748835307130,0.57654488,104880.0,104870.0,1.43486312]
[1748835307356,0.57654488,104880.0,104870.0,1.43485943]
[1748835307580,0.57654488,104880.0,104870.0,1.43485721]
[1748835307808,0.57654488,104880.0,104870.0,1.63510513]
[1748835308164,0.57654488,104880.0,104870.0,1.60772558]
[1748835308394,0.57654488,104880.0,104870.0,1.62556952]
[1748835308774,0.26619138,104880.0,104870.0,1.63510336]
[1748835309225,0.26619138,104880.0,104870.0,1.33686273]
[1748835309442,0.26619138,104880.0,104870.0,1.63510274]
[1748835309671,0.26619138,104880.0,104870.0,1.64463817]
[1748835310121,0.26619138,104880.0,104870.0,1.64463749]
[1748835310576,0.08503151,104880.0,104870.0,1.62679653]
[1748835310838,0.09456621,104880.0,104870.0,1.66370687]
[1748835311066,0.09456621,104880.0,104870.0,1.65417109]
[1748835311296,0.09456621,104880.0,104870.0,1.6637063]
[1748835311487,0.09456621,104880.0,104870.0,1.64463535]
[1748835311726,0.09456621,104880.0,104870.0,1.64463536]
[1748835312179,0.09456621,104880.0,104870.0,1.64463485]
[1748835312830,0.09456621,104880.0,104870.0,1.34639485]
[1748835312994,0.27572608,104880.0,104870.0,1.61722119]
[1748835313190,0.27572608,104880.0,104870.0,1.64459533]
[1748835313407,0.27572608,104880.0,104870.0,1.63629214]
[1748835313630,0.09456612,104880.0,104870.0,1.65413085]
[1748835314017,0.10410082,104880.0,104870.0,1.6636661]
[1748835314247,0.10410082,104880.0,104870.0,1.63629214]
[1748835314457,0.10410082,104880.0,104870.0,1.66366549]
[1748835314717,0.29479494,104880.0,104870.0,1.65413012]
[1748835314930,0.29479494,104880.0,104870.0,1.63629211]
[1748835315142,0.29479494,104880.0,104870.0,1.65413053]
[1748835315799,0.29479494,104880.0,104870.0,1.66366587]
[1748835316019,0.28526069,104880.0,104870.0,1.6445951]
[1748835316226,0.28526069,104880.0,104870.0,1.65413049]
[1748835316431,0.28526069,104880.0,104870.0,1.65413047]
[1748835316821,0.28526069,104880.0,104870.0,1.65107974]
[1748835317055,0.28526069,104880.0,104870.0,1.66366647]
[1748835317205,0.28526069,104880.0,104870.0,1.65413113]
[1748835317428,0.28526069,104880.0,104870.0,1.63629214]
[1748835317643,0.28526069,104880.0,104870.0,1.66366647]
[1748835317803,0.08503187,104880.0,104870.0,1.67320163]
[1748835318003,0.08503187,104880.0,104870.0,1.66366647]
[1748835318252,0.08503187,104880.0,104870.0,1.66061672]
[1748835318826,0.28526069,104880.0,104870.0,1.63201052]
[1748835319029,0.28526069,104880.0,104870.0,1.65108147]
[1748835319260,0.28526069,104880.0,104870.0,1.65413151]
[1748835319475,0.09456657,104880.0,104870.0,1.66366685]
[1748835319897,0.09456657,104880.0,104870.0,1.66061782]
[1748835320097,0.09456657,104880.0,104870.0,1.65108248]
[1748835320257,0.59561419,104880.0,104870.0,1.03770976]
[1748835320453,0.59561419,104880.0,104870.0,1.3358701]
[1748835320797,0.59561419,104880.0,104870.0,1.31802821]
[1748835321349,0.59561419,104880.0,104870.0,1.50874052]
[1748835321548,0.59561419,104880.0,104870.0,1.52658299]
[1748835321780,0.59561419,104880.0,104870.0,1.52658259]
[1748835322427,0.59561419,104880.0,104870.0,1.52963335]
[1748835322756,0.59561419,104880.0,104870.0,1.53916896]
[1748835322953,0.27572617,104880.0,104870.0,1.53916896]
[1748835323173,0.08503169,104880.0,104870.0,1.5582406]
[1748835323387,0.27572581,104880.0,104870.0,1.53917001]
[1748835323992,0.27572581,104880.0,104870.0,1.24101195]
[1748835324207,0.27572581,104880.0,104870.0,1.54870747]
[1748835324375,0.27572581,104880.0,104870.0,1.54870748]
[1748835324566,0.27572581,104880.0,104870.0,1.34845965]
[1748835324781,0.27572581,104880.0,104870.0,1.34846014]
[1748835325004,0.26619147,104880.0,104870.0,1.34846223]
[1748835325270,0.26619147,104880.0,104870.0,1.33892662]
[1748835325833,0.26619147,104880.0,104870.0,1.32107897]
[1748835326087,0.26619147,104880.0,104870.0,1.33892662]
[1748835326469,0.26619147,104880.0,104870.0,1.33892953]
[1748835327122,0.26619147,104880.0,104870.0,1.32107897]
[1748835327336,0.26619147,104880.0,104870.0,1.3389343]
[1748835327837,0.26619147,104880.0,104870.0,1.32107897]
[1748835328056,0.26619147,104880.0,104870.0,1.33893476]
[1748835328348,1.00624868,104880.0,104870.0,1.04077476]
[1748835328560,1.3261367,104880.0,104870.0,1.037724]
[1748835328737,1.3261367,104880.0,104870.0,1.04666154]
[1748835328962,1.3261367,104880.0,104870.0,1.04666199]
[1748835328963,1.7174167,104880.0,104870.0,1.04666199]
[1748835330124,1.7174167,104880.0,104870.0,1.02879921]
[1748835330330,1.7174167,104880.0,104870.0,1.04666118]
[1748835330539,1.7174167,104880.0,104870.0,1.0287992]
[1748835330752,1.7174167,104880.0,104870.0,1.04666096]
[1748835330936,1.72718476,104880.0,104870.0,1.04666096]
[1748835331193,1.64701557,104880.0,104870.0,1.04666096]
[1748835331423,1.00723953,104880.0,104870.0,1.04666096]
[1748835331638,1.64701557,104880.0,104870.0,1.04666074]
[1748835331850,1.64701557,104880.0,104870.0,1.04665638]
[1748835332741,1.64701557,104880.0,104870.0,1.0466543]
[1748835332954,1.64701557,104880.0,104870.0,1.04665326]
[1748835333154,1.64701557,104880.0,104870.0,1.02879656]
[1748835333602,1.64701557,104880.0,104870.0,1.03772491]
[1748835333822,1.64701557,104880.0,104870.0,1.04665326]
[1748835334022,1.73952679,104880.0,104870.0,1.03772491]
[1748835334239,1.73952679,104880.0,104870.0,1.04665111]
[1748835335368,1.73952679,104880.0,104870.0,1.04665068]
[1748835335586,1.64701557,104880.0,104870.0,1.04665068]
[1748835336054,1.64701557,104880.0,104870.0,1.04664891]
[1748835336273,1.34889557,104880.0,104870.0,1.04664891]
[1748835336492,1.32712755,104880.0,104870.0,1.04664891]
[1748835336693,1.32712755,104880.0,104870.0,1.02879455]
[1748835336910,1.32712755,104880.0,104870.0,1.01986821]
[1748835337117,1.32712755,104880.0,104870.0,1.04664723]
[1748835338268,1.32712755,104880.0,104870.0,1.04664705]
[1748835338513,0.61595953,104880.0,104870.0,1.04664705]
[1748835338724,0.56015062,104880.0,104870.0,1.14250135]
[1748835338967,0.36945595,104880.0,104870.0,1.67984462]
[1748835339177,0.38852472,104880.0,104870.0,1.97796462]
[1748835339389,0.59375969,104880.0,104870.0,1.65101176]
[1748835339597,0.59375969,104880.0,104870.0,1.65101045]
[1748835340052,0.90411365,104880.0,104870.0,1.64147547]
[1748835340253,0.58422563,104880.0,104870.0,1.34335555]
[1748835340468,0.58422563,104880.0,104870.0,1.62362577]
[1748835340686,0.58422563,104880.0,104870.0,1.65101056]
[1748835341561,0.58422563,104880.0,104870.0,1.65101097]
[1748835341779,0.58422563,104880.0,104870.0,1.66054622]
[1748835341980,0.58422563,104880.0,104870.0,1.6605462]
[1748835342175,0.40306621,104880.0,104870.0,1.66813152]
[1748835342395,0.40306621,104880.0,104870.0,1.68598136]
[1748835342879,0.39353151,104880.0,104870.0,1.68598156]
[1748835343087,0.40306612,104880.0,104870.0,1.68594101]
[1748835343286,0.41260082,104880.0,104870.0,1.68594101]
[1748835343497,0.41260082,104880.0,104870.0,1.68594091]
[1748835343747,0.41260082,104880.0,104870.0,1.67640594]
[1748835344164,0.60329494,104880.0,104870.0,1.67640594]
[1748835344371,0.60329494,104880.0,104870.0,1.67640567]
[1748835345018,0.60329494,104880.0,104870.0,1.67640569]
[1748835345502,0.60329494,104880.0,104870.0,1.65733528]
[1748835345717,0.59376069,104880.0,104870.0,1.65733495]
[1748835346134,0.59376069,104880.0,104870.0,1.63948559]
[1748835346565,0.59376069,104880.0,104870.0,1.64902084]
[1748835347018,0.59376069,104880.0,104870.0,1.62358559]
[1748835347448,0.59376069,104880.0,104870.0,1.64143465]
[1748835347657,0.59376069,104880.0,104870.0,1.62358559]
[1748835347866,0.59376069,104880.0,104870.0,1.64143425]
[1748835348073,0.59376069,104880.0,104870.0,1.62358559]
[1748835348287,0.58422617,104880.0,104870.0,1.64143425]
[1748835348499,0.58422617,104880.0,104870.0,1.62358559]
[1748835349161,0.57469156,104880.0,104870.0,1.63189903]
[1748835350037,0.57469156,104880.0,104870.0,1.61405034]
[1748835350239,0.57469156,104880.0,104870.0,1.63189897]
[1748835350447,0.56515686,104880.0,104870.0,1.41380251]
[1748835350677,0.58095686,104880.0,104870.0,1.43165115]
[1748835351150,0.58095686,104880.0,104870.0,1.43161115]
[1748835352081,0.58095686,104880.0,104870.0,1.43161202]
[1748835352739,0.58095686,104880.0,104870.0,1.33575772]
[1748835352957,0.59745686,104880.0,104870.0,1.33575772]
[1748835353858,0.59745686,104880.0,104870.0,1.31790821]
[1748835354071,0.59745686,104880.0,104870.0,1.33575877]
[1748835354499,0.59745686,104880.0,104870.0,1.33575934]
[1748835354717,0.59745686,104880.0,104870.0,1.31790821]
[1748835354925,0.59745686,104880.0,104870.0,1.33575905]
[1748835355132,0.59745686,104880.0,104870.0,1.31790821]
[1748835355572,0.59745686,104880.0,104870.0,1.33575962]
[1748835355998,0.59745686,104880.0,104870.0,1.33575943]
[1748835356403,0.59745686,104880.0,104870.0,1.31790821]
[1748835356606,0.59745686,104880.0,104870.0,1.33575937]
[1748835356766,0.59745686,104880.0,104870.0,1.31790821]
[1748835356969,0.59745686,104880.0,104870.0,1.33575912]
[1748835357229,0.59745686,104880.0,104870.0,1.31790821]
[1748835357431,0.58095686,104880.0,104870.0,1.31790821]
[1748835357706,0.58095686,104880.0,104870.0,1.3357589]
[1748835357906,0.58095686,104880.0,104870.0,1.31790821]
[1748835358481,0.58095686,104880.0,104870.0,1.33575838]
[1748835359468,0.67346808,104880.0,104870.0,1.33575963]
[1748835359803,0.68946808,104880.0,104870.0,1.03771963]
[1748835359978,1.00945305,104880.0,104870.0,1.03771963]
[1748835360180,1.00945305,104880.0,104870.0,1.03772005]
[1748835360982,1.00945305,104880.0,104870.0,1.03772025]
[1748835361290,1.00945305,104880.0,104870.0,1.01986821]
[1748835361477,0.91694183,104880.0,104870.0,1.03772025]
[1748835362328,0.91694183,104880.0,104870.0,1.03772119]
[1748835362972,0.59695686,104880.0,104870.0,1.04664972]
[1748835363148,0.89485686,104880.0,104870.0,1.03772255]
[1748835363351,0.89485686,104880.0,104870.0,1.01986821]
[1748835363492,0.89485686,104880.0,104870.0,1.03772214]
[1748835363690,0.89485686,104880.0,104870.0,1.01986821]
[1748835363902,0.89485686,104880.0,104870.0,1.03772328]
[1748835364963,0.89485686,104880.0,104870.0,1.01986821]
[1748835365167,0.89485686,104880.0,104870.0,1.03772345]
[1748835366115,0.89485686,104880.0,104870.0,1.03772484]
[1748835366608,0.89485686,104880.0,104870.0,1.03772652]
[1748835367039,0.89485686,104880.0,104870.0,1.0377264]
[1748835367471,0.89485686,104880.0,104870.0,1.03772639]
[1748835367672,0.87885686,104880.0,104870.0,1.03772639]
[1748835368061,0.87885686,104880.0,104870.0,1.01986821]
[1748835368499,0.87885686,104880.0,104870.0,1.03772637]
[1748835368705,0.87885686,104880.0,104870.0,1.03772818]
[1748835369881,0.87885686,104880.0,104870.0,1.03772792]
[1748835370088,0.87885686,104880.0,104870.0,1.01986821]
[1748835370298,0.87885686,104880.0,104870.0,1.03772792]
[1748835370886,0.87885686,104880.0,104870.0,1.03772791]
[1748835371285,0.87885686,104880.0,104870.0,1.03772802]
[1748835371753,0.87885686,104880.0,104870.0,1.03772803]
[1748835373325,1.19886164,104880.0,104870.0,1.03772837]
[1748835373530,1.21516164,104880.0,104870.0,1.03772922]
[1748835373934,1.21516164,104880.0,104870.0,1.01986821]
[1748835374195,0.58412581,104880.0,104870.0,1.55798212]
[1748835374386,0.36935586,104880.0,104870.0,1.71484179]
[1748835374612,0.35982189,104880.0,104870.0,1.71484179]
[1748835374808,0.01982189,104880.0,104870.0,1.71484179]
[1748835375002,0.01982189,104880.0,104870.0,1.7148379]
[1748835375242,0.01982189,104880.0,104870.0,1.71483783]
[1748835375444,0.01982189,104880.0,104870.0,1.69698058]
[1748835375850,0.01982189,104880.0,104870.0,1.71483895]
[1748835376086,0.02935586,104880.0,104870.0,1.69698058]
[1748835376495,0.02935586,104880.0,104870.0,1.71483895]
[1748835376695,0.01982189,104880.0,104870.0,1.69698058]
[1748835376930,0.02935577,104880.0,104870.0,1.69698058]
[1748835377140,0.01982189,104880.0,104870.0,1.71483895]
[1748835377393,0.01982189,104880.0,104870.0,1.69685514]
[1748835377602,0.01982189,104880.0,104870.0,1.7147128]
[1748835377817,0.01982189,104880.0,104870.0,1.70173]
[1748835378023,0.01982189,104880.0,104870.0,1.70172949]
[1748835378225,0.01982189,104880.0,104870.0,1.68387234]
[1748835378854,0.01982189,104880.0,104870.0,1.70172943]
[1748835379333,0.01982189,104880.0,104870.0,1.67898693]
[1748835380206,0.01982189,104880.0,104870.0,1.69684402]
[1748835380406,0.01982189,104880.0,104870.0,1.67898693]
[1748835381514,0.01982189,104880.0,104870.0,1.99480445]
[1748835381755,0.01982189,104880.0,104870.0,1.99478702]
[1748835382904,0.01982189,104880.0,104870.0,1.67490768]
[1748835383123,0.01982189,104880.0,104870.0,1.99478702]
[1748835383579,0.01982189,104880.0,104870.0,1.99477561]
[1748835383780,0.01982189,104880.0,104870.0,1.97694693]
[1748835384031,0.01982189,104880.0,104870.0,1.99476995]
[1748835384840,0.01982189,104880.0,104870.0,1.9947683]
[1748835385487,0.01982189,104880.0,104870.0,1.99476458]
[1748835385698,0.01982189,104880.0,104870.0,1.99476286]
[1748835385925,0.01982189,104880.0,104870.0,1.99476049]
[1748835386354,0.02307159,104880.0,104870.0,1.99476049]
[1748835386567,0.02307159,104880.0,104870.0,1.99472049]
[1748835386992,0.02307159,104880.0,104870.0,1.99471896]
[1748835388299,0.02307159,104880.0,104870.0,1.99471796]
[1748835389123,0.02307159,104880.0,104870.0,1.99471736]
[1748835389374,0.02307159,104880.0,104870.0,1.97690693]
[1748835389615,0.02307159,104880.0,104870.0,1.99471736]
[1748835389843,0.02307159,104880.0,104870.0,1.97690693]
[1748835390069,0.02307159,104880.0,104870.0,1.99471736]
[1748835391170,0.02307159,104880.0,104870.0,1.97690693]
[1748835391396,0.02307159,104880.0,104870.0,1.99471705]
[1748835391784,0.02307159,104880.0,104870.0,1.99471713]
[1748835392197,0.02307159,104880.0,104870.0,1.97690693]
[1748835392397,0.02307159,104880.0,104870.0,1.99471718]
[1748835392767,0.02307159,104880.0,104870.0,1.99471737]
[1748835393424,0.02307159,104880.0,104870.0,1.97690693]
[1748835393614,0.02307159,104880.0,104870.0,1.99471748]
[1748835394453,0.02307159,104880.0,104870.0,1.97690693]
[1748835394815,0.02307159,104880.0,104870.0,1.99471788]
[1748835395339,0.02307159,104880.0,104870.0,1.99471797]
[1748835395548,0.02307159,104880.0,104870.0,1.97690693]
[1748835395748,0.02307159,104880.0,104870.0,1.99471937]
[1748835396325,0.02307159,104880.0,104870.0,1.97690693]
[1748835396745,0.02307159,104880.0,104870.0,2.39471937]
[1748835396976,0.02307159,104880.0,104870.0,2.39472131]
[1748835397392,0.02307159,104880.0,104870.0,2.39472178]
[1748835397582,0.02307159,104880.0,104870.0,2.37690693]
[1748835397800,0.02307159,104880.0,104870.0,2.39472178]
[1748835398151,0.02307159,104880.0,104870.0,2.39472456]
[1748835398567,0.02307159,104880.0,104870.0,2.37690693]
[1748835398738,0.02307159,104880.0,104870.0,2.39472456]
[1748835399161,0.02307159,104880.0,104870.0,2.39960997]
[1748835399364,0.02307159,104880.0,104870.0,2.38179234]
[1748835399576,0.02307159,104880.0,104870.0,2.39961042]
[1748835400189,0.02307159,104880.0,104870.0,2.39961432]
[1748835401028,0.02307159,104880.0,104870.0,2.39961988]
[1748835401249,0.02307159,104880.0,104870.0,2.39962026]
[1748835402545,0.02307159,104880.0,104870.0,2.39962856]
[1748835402746,0.02307159,104880.0,104870.0,2.39962889]
[1748835403012,0.02307159,104880.0,104870.0,2.49262889]
[1748835403234,0.02307159,104880.0,104870.0,2.49257661]
[1748835404814,0.02307159,104880.0,104870.0,2.47474006]
[1748835405026,0.02307159,104880.0,104870.0,2.47466006]
[1748835405433,0.02307159,104880.0,104870.0,2.10168245]
[1748835405645,0.02307159,104880.0,104870.0,2.47466006]
[1748835405884,0.02307159,104880.0,104870.0,2.49252235]
[1748835406080,0.02307159,104880.0,104870.0,2.47466006]